[Event "Titled Tuesday Blitz January 10 Late 2023"]
[White "Barp, Alberto"]
[Black "Ivic, Velimir"]
[WhiteFideId "872555"]
[BlackFideId "950122"]
[WhiteElo "2432"]
[BlackElo "2595"]
[Result "0-1"]
[Round "03"]
[TimeControl "180+2"]
[Date "2023.01.10"]
[WhiteClock "0:00:19"]
[BlackClock "0:00:48"]

1. d4 {[%clk 0:00:00]}  Nf6 {[%clk 0:00:00]} 2. c4 {[%clk 0:03:00]}  g6 {[%clk 0:03:00]} 3. g3 {[%clk 0:03:00]}  Bg7 {[%clk 0:02:58]} 4. Bg2 {[%clk 0:02:58]}  O-O {[%clk 0:02:58]} 5. Nc3 {[%clk 0:02:58]}  d6 {[%clk 0:02:59]} 6. Nf3 {[%clk 0:02:59]}  c6 {[%clk 0:02:59]} 7. O-O {[%clk 0:02:59]}  Bf5 {[%clk 0:02:59]} 8. Ng5 {[%clk 0:03:00]}  e5 {[%clk 0:03:00]} 9. d5 {[%clk 0:02:57]}  Qc7 {[%clk 0:02:57]} 10. dxc6 {[%clk 0:02:52]}  bxc6 {[%clk 0:02:56]} 11. Nge4 {[%clk 0:02:41]}  Nxe4 {[%clk 0:02:49]} 12. Nxe4 {[%clk 0:02:37]}  Bxe4 {[%clk 0:02:45]} 13. Bxe4 {[%clk 0:02:36]}  Nd7 {[%clk 0:02:40]} 14. Be3 {[%clk 0:02:36]}  f5 {[%clk 0:02:39]} 15. Bg2 {[%clk 0:02:28]}  e4 {[%clk 0:02:37]} 16. Qd2 {[%clk 0:02:26]}  Ne5 {[%clk 0:02:37]} 17. b3 {[%clk 0:02:24]}  Ng4 {[%clk 0:02:29]} 18. Bd4 {[%clk 0:02:21]}  e3 {[%clk 0:02:16]} 19. fxe3 {[%clk 0:02:17]}  Rae8 {[%clk 0:01:48]} 20. e4 {[%clk 0:02:15]}  Bh6 {[%clk 0:01:49]} 21. Qd3 {[%clk 0:02:02]}  c5 {[%clk 0:01:41]} 22. Bc3 {[%clk 0:01:17]}  f4 {[%clk 0:01:40]} 23. Qd5+ {[%clk 0:01:14]}  Rf7 {[%clk 0:01:15]} 24. Rxf4 {[%clk 0:00:58]}  Bxf4 {[%clk 0:01:14]} 25. gxf4 {[%clk 0:00:47]}  Ne3 {[%clk 0:01:13]} 26. Qg5 {[%clk 0:00:48]}  Nxg2 {[%clk 0:01:10]} 27. Qxg2 {[%clk 0:00:43]}  Rxf4 {[%clk 0:01:07]} 28. e5 {[%clk 0:00:35]}  dxe5 {[%clk 0:01:02]} 29. e3 {[%clk 0:00:35]}  Rf5 {[%clk 0:01:03]} 30. Rd1 {[%clk 0:00:26]}  Qf7 {[%clk 0:01:01]} 31. Qc6 {[%clk 0:00:22]}  e4 {[%clk 0:00:58]} 32. Kh1 {[%clk 0:00:19]}  Rf1+ {[%clk 0:00:48]} 0-1


[Site "https://www.chess.com"]

[Event "Titled Tuesday Blitz January 10 Late 2023"]
[White "Baskakov, Egor"]
[Black "Sai Krishna G V"]
[WhiteFideId "24197866"]
[BlackFideId "5028280"]
[WhiteElo "2215"]
[BlackElo "2384"]
[Result "1-0"]
[Round "03"]
[TimeControl "180+2"]
[Date "2023.01.10"]
[WhiteClock "0:00:16"]
[BlackClock "0:00:45"]

1. e4 {[%clk 0:00:00]}  e5 {[%clk 0:00:00]} 2. Nc3 {[%clk 0:03:00]}  Nc6 {[%clk 0:03:00]} 3. g3 {[%clk 0:03:00]}  h5 {[%clk 0:02:59]} 4. h3 {[%clk 0:03:00]}  h4 {[%clk 0:02:57]} 5. g4 {[%clk 0:03:00]}  g5 {[%clk 0:02:54]} 6. Bg2 {[%clk 0:03:00]}  Nge7 {[%clk 0:02:49]} 7. Nge2 {[%clk 0:03:00]}  Ng6 {[%clk 0:02:50]} 8. d3 {[%clk 0:03:00]}  Bc5 {[%clk 0:02:50]} 9. O-O {[%clk 0:03:00]}  Nf4 {[%clk 0:02:47]} 10. Nxf4 {[%clk 0:03:00]}  gxf4 {[%clk 0:02:46]} 11. Nd5 {[%clk 0:02:59]}  d6 {[%clk 0:02:47]} 12. c3 {[%clk 0:02:55]}  Be6 {[%clk 0:02:44]} 13. d4 {[%clk 0:02:55]}  Bb6 {[%clk 0:02:42]} 14. Nxb6 {[%clk 0:02:52]}  axb6 {[%clk 0:02:42]} 15. d5 {[%clk 0:02:52]}  Bd7 {[%clk 0:02:41]} 16. dxc6 {[%clk 0:02:53]}  bxc6 {[%clk 0:02:40]} 17. c4 {[%clk 0:02:53]}  b5 {[%clk 0:02:38]} 18. cxb5 {[%clk 0:02:53]}  cxb5 {[%clk 0:02:37]} 19. b3 {[%clk 0:02:50]}  Qb8 {[%clk 0:02:38]} 20. Bb2 {[%clk 0:02:51]}  Qb7 {[%clk 0:02:34]} 21. Bf3 {[%clk 0:02:48]}  Bc6 {[%clk 0:02:33]} 22. Re1 {[%clk 0:02:44]}  Ra6 {[%clk 0:02:32]} 23. a3 {[%clk 0:02:43]}  Kd7 {[%clk 0:02:32]} 24. b4 {[%clk 0:02:43]}  Rha8 {[%clk 0:02:32]} 25. Qb3 {[%clk 0:02:43]}  Ke7 {[%clk 0:02:30]} 26. Rac1 {[%clk 0:02:41]}  Bd7 {[%clk 0:02:30]} 27. Qd3 {[%clk 0:02:40]}  Be6 {[%clk 0:02:30]} 28. Bd1 {[%clk 0:02:34]}  Bc4 {[%clk 0:02:29]} 29. Rxc4 {[%clk 0:02:26]}  bxc4 {[%clk 0:02:23]} 30. Qxc4 {[%clk 0:02:26]}  Rc6 {[%clk 0:02:23]} 31. Qd5 {[%clk 0:02:27]}  Rb6 {[%clk 0:02:05]} 32. Qd3 {[%clk 0:02:25]}  Qa6 {[%clk 0:02:05]} 33. Qc3 {[%clk 0:02:15]}  Rc6 {[%clk 0:02:02]} 34. Qf3 {[%clk 0:02:10]}  Rb8 {[%clk 0:02:01]} 35. Bb3 {[%clk 0:02:02]}  Rcb6 {[%clk 0:01:52]} 36. g5 {[%clk 0:01:59]}  c5 {[%clk 0:01:49]} 37. Qh5 {[%clk 0:01:56]}  c4 {[%clk 0:01:47]} 38. Bd1 {[%clk 0:01:54]}  c3 {[%clk 0:01:47]} 39. Bb3 {[%clk 0:01:46]}  cxb2 {[%clk 0:01:44]} 40. Qxf7+ {[%clk 0:01:27]}  Kd8 {[%clk 0:01:29]} 41. Qf8+ {[%clk 0:01:27]}  Kd7 {[%clk 0:01:30]} 42. Qf7+ {[%clk 0:01:09]}  Kd8 {[%clk 0:01:27]} 43. Be6 {[%clk 0:01:08]}  R6b7 {[%clk 0:01:27]} 44. Qf8+ {[%clk 0:00:44]}  Kc7 {[%clk 0:01:27]} 45. Qe7+ {[%clk 0:00:36]}  Kc6 {[%clk 0:01:27]} 46. Bd5+ {[%clk 0:00:37]}  Kb5 {[%clk 0:01:11]} 47. Qe6 {[%clk 0:00:34]}  Qxa3 {[%clk 0:01:12]} 48. Qxd6 {[%clk 0:00:34]}  Qxb4 {[%clk 0:01:06]} 49. Qc6+ {[%clk 0:00:32]}  Ka5 {[%clk 0:00:55]} 50. Rb1 {[%clk 0:00:31]}  Rb6 {[%clk 0:00:56]} 51. Qc7 {[%clk 0:00:31]}  Qd2 {[%clk 0:00:52]} 52. Qc5+ {[%clk 0:00:30]}  Ka4 {[%clk 0:00:52]} 53. Qc4+ {[%clk 0:00:20]}  Ka5 {[%clk 0:00:49]} 54. Qc5+ {[%clk 0:00:17]}  Ka4 {[%clk 0:00:48]} 55. Qc4+ {[%clk 0:00:17]}  Rb4 {[%clk 0:00:45]} 56. Qa6# {[%clk 0:00:16]} 1-0


[Site "https://www.chess.com"]

[Event "Titled Tuesday Blitz January 10 Late 2023"]
[White "Tatarinov, Dmitry"]
[Black "Sanal, Vahap"]
[WhiteFideId "24160067"]
[BlackFideId "6300545"]
[WhiteElo "2310"]
[BlackElo "2600"]
[Result "0-1"]
[Round "03"]
[TimeControl "180+2"]
[Date "2023.01.10"]
[WhiteClock "0:00:26"]
[BlackClock "0:01:09"]

1. Nf3 {[%clk 0:00:00]}  d5 {[%clk 0:00:00]} 2. c4 {[%clk 0:02:54]}  c6 {[%clk 0:02:57]} 3. e3 {[%clk 0:02:46]}  Nf6 {[%clk 0:02:57]} 4. Nc3 {[%clk 0:02:46]}  Nbd7 {[%clk 0:02:57]} 5. cxd5 {[%clk 0:02:46]}  cxd5 {[%clk 0:02:57]} 6. d4 {[%clk 0:02:46]}  e6 {[%clk 0:02:57]} 7. Bd3 {[%clk 0:02:46]}  Bd6 {[%clk 0:02:56]} 8. O-O {[%clk 0:02:45]}  O-O {[%clk 0:02:56]} 9. Qb3 {[%clk 0:02:45]}  a6 {[%clk 0:02:56]} 10. a4 {[%clk 0:02:45]}  b6 {[%clk 0:02:55]} 11. Bd2 {[%clk 0:02:45]}  Bb7 {[%clk 0:02:54]} 12. Rfc1 {[%clk 0:02:44]}  Qe7 {[%clk 0:02:54]} 13. Na2 {[%clk 0:02:45]}  Ne4 {[%clk 0:02:53]} 14. Bb4 {[%clk 0:02:40]}  Rfc8 {[%clk 0:02:52]} 15. Bxd6 {[%clk 0:02:39]}  Qxd6 {[%clk 0:02:51]} 16. Qb4 {[%clk 0:02:39]}  Qxb4 {[%clk 0:02:52]} 17. Nxb4 {[%clk 0:02:35]}  a5 {[%clk 0:02:48]} 18. Na2 {[%clk 0:02:36]}  Nd6 {[%clk 0:02:48]} 19. Nc3 {[%clk 0:02:35]}  Kf8 {[%clk 0:02:48]} 20. Nb5 {[%clk 0:02:34]}  Ke7 {[%clk 0:02:45]} 21. Nxd6 {[%clk 0:02:31]}  Kxd6 {[%clk 0:02:43]} 22. Bb5 {[%clk 0:02:30]}  Bc6 {[%clk 0:02:43]} 23. Bxc6 {[%clk 0:02:30]}  Rxc6 {[%clk 0:02:36]} 24. Rxc6+ {[%clk 0:02:25]}  Kxc6 {[%clk 0:02:37]} 25. Rc1+ {[%clk 0:02:21]}  Kd6 {[%clk 0:02:38]} 26. Kf1 {[%clk 0:02:19]}  Rb8 {[%clk 0:02:37]} 27. Ne1 {[%clk 0:02:15]}  b5 {[%clk 0:02:35]} 28. axb5 {[%clk 0:01:58]}  Rxb5 {[%clk 0:02:22]} 29. Nd3 {[%clk 0:01:57]}  Nb6 {[%clk 0:02:23]} 30. Rc5 {[%clk 0:01:58]}  Rb3 {[%clk 0:02:13]} 31. Ne5 {[%clk 0:01:55]}  f6 {[%clk 0:02:12]} 32. Rc6+ {[%clk 0:01:51]}  Ke7 {[%clk 0:02:06]} 33. Nd3 {[%clk 0:01:49]}  Kd7 {[%clk 0:02:06]} 34. Rxe6 {[%clk 0:01:44]}  Na4 {[%clk 0:01:51]} 35. Ra6 {[%clk 0:01:33]}  Rxd3 {[%clk 0:01:42]} 36. Rxa5 {[%clk 0:01:23]}  Nxb2 {[%clk 0:01:39]} 37. Ra7+ {[%clk 0:01:23]}  Ke6 {[%clk 0:01:38]} 38. Rxg7 {[%clk 0:01:23]}  Rd2 {[%clk 0:01:38]} 39. Rg3 {[%clk 0:01:24]}  Nd3 {[%clk 0:01:38]} 40. Rf3 {[%clk 0:00:55]}  f5 {[%clk 0:01:38]} 41. h3 {[%clk 0:00:54]}  h5 {[%clk 0:01:36]} 42. h4 {[%clk 0:00:51]}  Ra2 {[%clk 0:01:36]} 43. Kg1 {[%clk 0:00:49]}  Kf6 {[%clk 0:01:34]} 44. Kf1 {[%clk 0:00:47]}  Rb2 {[%clk 0:01:32]} 45. Kg1 {[%clk 0:00:46]}  Rb1+ {[%clk 0:01:09]} 46. Kh2 {[%clk 0:00:46]}  Rf1 {[%clk 0:01:10]} 47. Kg3 {[%clk 0:00:45]}  Rh1 {[%clk 0:01:10]} 48. e4 {[%clk 0:00:39]}  dxe4 {[%clk 0:01:10]} 49. Rxf5+ {[%clk 0:00:26]}  Kxf5 {[%clk 0:01:09]} 50. d5 {[%clk 0:00:26]}  Nc1 {[%clk 0:01:09]} 0-1


[Site "https://www.chess.com"]

[Event "Titled Tuesday Blitz January 10 Late 2023"]
[White "Hamley, Ryan"]
[Black "Zakhartsov, Vladimir"]
[WhiteFideId "30959497"]
[BlackFideId "4145097"]
[WhiteElo "2092"]
[BlackElo "2552"]
[Result "0-1"]
[Round "03"]
[TimeControl "180+2"]
[Date "2023.01.10"]
[WhiteClock "0:00:30"]
[BlackClock "0:00:29"]

1. d4 {[%clk 0:00:00]}  Nf6 {[%clk 0:00:00]} 2. c4 {[%clk 0:03:00]}  e6 {[%clk 0:02:59]} 3. Nf3 {[%clk 0:03:00]}  c5 {[%clk 0:02:59]} 4. d5 {[%clk 0:03:00]}  exd5 {[%clk 0:02:59]} 5. cxd5 {[%clk 0:03:00]}  g6 {[%clk 0:03:00]} 6. Nc3 {[%clk 0:03:01]}  d6 {[%clk 0:03:00]} 7. e4 {[%clk 0:03:01]}  Bg7 {[%clk 0:03:01]} 8. Bf4 {[%clk 0:03:01]}  O-O {[%clk 0:03:01]} 9. Be2 {[%clk 0:03:00]}  b5 {[%clk 0:02:57]} 10. Nd2 {[%clk 0:02:59]}  a6 {[%clk 0:02:44]} 11. O-O {[%clk 0:02:49]}  Re8 {[%clk 0:02:31]} 12. Bf3 {[%clk 0:02:42]}  b4 {[%clk 0:02:31]} 13. Ne2 {[%clk 0:02:28]}  Bg4 {[%clk 0:02:13]} 14. Ng3 {[%clk 0:02:26]}  h5 {[%clk 0:01:59]} 15. Nc4 {[%clk 0:02:22]}  Nxe4 {[%clk 0:01:36]} 16. Bxg4 {[%clk 0:02:16]}  hxg4 {[%clk 0:01:31]} 17. Qxg4 {[%clk 0:02:06]}  Nd7 {[%clk 0:01:28]} 18. Rfe1 {[%clk 0:02:06]}  Nef6 {[%clk 0:01:24]} 19. Qf3 {[%clk 0:01:41]}  Rxe1+ {[%clk 0:00:50]} 20. Rxe1 {[%clk 0:01:40]}  Nb6 {[%clk 0:00:50]} 21. Nxd6 {[%clk 0:01:39]}  Nfxd5 {[%clk 0:00:51]} 22. Nxf7 {[%clk 0:01:10]}  Kxf7 {[%clk 0:00:50]} 23. Ne4 {[%clk 0:01:04]}  Kg8 {[%clk 0:00:35]} 24. Nxc5 {[%clk 0:00:52]}  Qf6 {[%clk 0:00:31]} 25. Ne6 {[%clk 0:00:50]}  Re8 {[%clk 0:00:30]} 26. Bd2 {[%clk 0:00:30]}  Rxe6 {[%clk 0:00:29]} 0-1


[Site "https://www.chess.com"]

[Event "Titled Tuesday Blitz January 10 Late 2023"]
[White "Leiva, Gianmarco"]
[Black "Zhigalko, Sergei"]
[WhiteFideId "3804399"]
[BlackFideId "13502956"]
[WhiteElo "2392"]
[BlackElo "2572"]
[Result "1/2-1/2"]
[Round "03"]
[TimeControl "180+2"]
[Date "2023.01.10"]
[WhiteClock "0:00:18"]
[BlackClock "0:00:19"]

1. d4 {[%clk 0:00:00]}  Nf6 {[%clk 0:00:00]} 2. Nf3 {[%clk 0:03:00]}  e6 {[%clk 0:02:57]} 3. Bf4 {[%clk 0:03:00]}  d5 {[%clk 0:02:57]} 4. e3 {[%clk 0:03:00]}  Bd6 {[%clk 0:02:57]} 5. Nbd2 {[%clk 0:03:00]}  O-O {[%clk 0:02:58]} 6. c3 {[%clk 0:02:59]}  c5 {[%clk 0:02:58]} 7. Ne5 {[%clk 0:02:57]}  Nc6 {[%clk 0:02:58]} 8. Bd3 {[%clk 0:02:57]}  Qc7 {[%clk 0:02:58]} 9. Ndf3 {[%clk 0:02:42]}  h6 {[%clk 0:02:58]} 10. h3 {[%clk 0:02:42]}  Nd7 {[%clk 0:02:58]} 11. Nxd7 {[%clk 0:02:30]}  Bxd7 {[%clk 0:02:57]} 12. Bxd6 {[%clk 0:02:29]}  Qxd6 {[%clk 0:02:58]} 13. O-O {[%clk 0:02:29]}  e5 {[%clk 0:02:59]} 14. dxe5 {[%clk 0:02:28]}  Nxe5 {[%clk 0:02:58]} 15. Nxe5 {[%clk 0:02:18]}  Qxe5 {[%clk 0:02:59]} 16. Re1 {[%clk 0:02:18]}  Rad8 {[%clk 0:03:00]} 17. Qf3 {[%clk 0:02:11]}  Bc6 {[%clk 0:03:00]} 18. Qf5 {[%clk 0:02:11]}  Qxf5 {[%clk 0:02:59]} 19. Bxf5 {[%clk 0:02:08]}  g6 {[%clk 0:02:55]} 20. Bc2 {[%clk 0:02:08]}  d4 {[%clk 0:02:56]} 21. exd4 {[%clk 0:02:07]}  cxd4 {[%clk 0:02:56]} 22. cxd4 {[%clk 0:02:04]}  Rxd4 {[%clk 0:02:57]} 23. Rad1 {[%clk 0:02:05]}  Rfd8 {[%clk 0:02:58]} 24. Bb3 {[%clk 0:02:05]}  Kf8 {[%clk 0:02:53]} 25. Rxd4 {[%clk 0:02:00]}  Rxd4 {[%clk 0:02:49]} 26. Rd1 {[%clk 0:01:49]}  Re4 {[%clk 0:02:50]} 27. Rd2 {[%clk 0:01:48]}  Re1+ {[%clk 0:02:48]} 28. Kh2 {[%clk 0:01:41]}  a5 {[%clk 0:02:48]} 29. Kg3 {[%clk 0:01:42]}  h5 {[%clk 0:02:31]} 30. h4 {[%clk 0:01:30]}  Ke7 {[%clk 0:02:26]} 31. Bd5 {[%clk 0:01:28]}  Rc1 {[%clk 0:02:24]} 32. f3 {[%clk 0:01:16]}  b6 {[%clk 0:02:04]} 33. Bxc6 {[%clk 0:01:03]}  Rxc6 {[%clk 0:01:54]} 34. Rd5 {[%clk 0:00:58]}  Rd6 {[%clk 0:01:55]} 35. Rb5 {[%clk 0:00:58]}  Kd7 {[%clk 0:01:49]} 36. Kf4 {[%clk 0:00:55]}  f6 {[%clk 0:01:48]} 37. g4 {[%clk 0:00:50]}  Kc6 {[%clk 0:01:30]} 38. Rb3 {[%clk 0:00:47]}  Rd4+ {[%clk 0:01:30]} 39. Kg3 {[%clk 0:00:47]}  a4 {[%clk 0:01:27]} 40. Rc3+ {[%clk 0:00:35]}  Kd5 {[%clk 0:01:24]} 41. Rc8 {[%clk 0:00:31]}  Rb4 {[%clk 0:01:14]} 42. Rg8 {[%clk 0:00:29]}  hxg4 {[%clk 0:01:13]} 43. fxg4 {[%clk 0:00:20]}  Rxb2 {[%clk 0:01:02]} 44. Rxg6 {[%clk 0:00:21]}  Ke5 {[%clk 0:01:02]} 45. h5 {[%clk 0:00:21]}  Rxa2 {[%clk 0:01:00]} 46. h6 {[%clk 0:00:18]}  Ra3+ {[%clk 0:00:25]} 47. Kg2 {[%clk 0:00:18]}  Ra2+ {[%clk 0:00:24]} 48. Kg3 {[%clk 0:00:18]}  Ra1 {[%clk 0:00:24]} 49. Kg2 {[%clk 0:00:18]}  Ra2+ {[%clk 0:00:19]} 50. Kg3 {[%clk 0:00:18]} 1/2-1/2


[Site "https://www.chess.com"]

[Event "Titled Tuesday Blitz January 10 Late 2023"]
[White "Indjic, Aleksandar"]
[Black "Fiorito, Joaquin"]
[WhiteFideId "911925"]
[BlackFideId "180173"]
[WhiteElo "2618"]
[BlackElo "2405"]
[Result "1-0"]
[Round "03"]
[TimeControl "180+2"]
[Date "2023.01.10"]
[WhiteClock "0:00:09"]
[BlackClock "0:00:08"]

1. d4 {[%clk 0:00:00]}  Nf6 {[%clk 0:00:00]} 2. Nf3 {[%clk 0:03:00]}  d5 {[%clk 0:03:00]} 3. Bg5 {[%clk 0:03:00]}  Ne4 {[%clk 0:03:00]} 4. Bh4 {[%clk 0:03:00]}  Bf5 {[%clk 0:02:58]} 5. Nbd2 {[%clk 0:03:00]}  c6 {[%clk 0:02:56]} 6. e3 {[%clk 0:02:58]}  Qb6 {[%clk 0:02:56]} 7. Rb1 {[%clk 0:02:57]}  e6 {[%clk 0:02:55]} 8. Bd3 {[%clk 0:02:56]}  Nxd2 {[%clk 0:02:56]} 9. Nxd2 {[%clk 0:02:54]}  Bxd3 {[%clk 0:02:49]} 10. cxd3 {[%clk 0:02:50]}  Bd6 {[%clk 0:02:44]} 11. O-O {[%clk 0:02:51]}  O-O {[%clk 0:02:38]} 12. Nf3 {[%clk 0:02:50]}  Nd7 {[%clk 0:02:38]} 13. Bg3 {[%clk 0:02:48]}  Bxg3 {[%clk 0:02:38]} 14. hxg3 {[%clk 0:02:48]}  c5 {[%clk 0:02:36]} 15. dxc5 {[%clk 0:02:48]}  Nxc5 {[%clk 0:02:37]} 16. Qc2 {[%clk 0:02:46]}  Rfc8 {[%clk 0:02:38]} 17. Rfc1 {[%clk 0:02:43]}  Qd8 {[%clk 0:02:37]} 18. Qd2 {[%clk 0:02:43]}  Qe7 {[%clk 0:02:22]} 19. Rc2 {[%clk 0:02:41]}  Nd7 {[%clk 0:02:16]} 20. Rbc1 {[%clk 0:02:40]}  Rxc2 {[%clk 0:02:06]} 21. Qxc2 {[%clk 0:02:39]}  Qd8 {[%clk 0:02:06]} 22. Qc7 {[%clk 0:02:39]}  b6 {[%clk 0:00:51]} 23. d4 {[%clk 0:02:34]}  h6 {[%clk 0:00:49]} 24. Qxd8+ {[%clk 0:02:33]}  Rxd8 {[%clk 0:00:39]} 25. Rc7 {[%clk 0:02:30]}  a5 {[%clk 0:00:40]} 26. a4 {[%clk 0:02:28]}  f6 {[%clk 0:00:39]} 27. Ne1 {[%clk 0:02:27]}  Kf7 {[%clk 0:00:34]} 28. Nd3 {[%clk 0:02:20]}  Ke7 {[%clk 0:00:34]} 29. Rc6 {[%clk 0:02:19]}  Rb8 {[%clk 0:00:34]} 30. Nf4 {[%clk 0:02:18]}  Nf8 {[%clk 0:00:33]} 31. Rc7+ {[%clk 0:02:16]}  Nd7 {[%clk 0:00:30]} 32. Rc6 {[%clk 0:02:14]}  Nf8 {[%clk 0:00:30]} 33. Kf1 {[%clk 0:01:37]}  Kd7 {[%clk 0:00:30]} 34. Rc2 {[%clk 0:01:15]}  b5 {[%clk 0:00:29]} 35. axb5 {[%clk 0:01:14]}  Rxb5 {[%clk 0:00:28]} 36. Nh5 {[%clk 0:01:13]}  Ke7 {[%clk 0:00:29]} 37. Nxg7 {[%clk 0:01:13]}  Nd7 {[%clk 0:00:14]} 38. Nh5 {[%clk 0:01:12]}  Nb6 {[%clk 0:00:14]} 39. Rc7+ {[%clk 0:01:11]}  Kd6 {[%clk 0:00:14]} 40. Ra7 {[%clk 0:00:51]}  Nc4 {[%clk 0:00:15]} 41. Nxf6 {[%clk 0:00:52]}  Rxb2 {[%clk 0:00:14]} 42. Ra6+ {[%clk 0:00:49]}  Ke7 {[%clk 0:00:14]} 43. Nh5 {[%clk 0:00:25]}  Rb1+ {[%clk 0:00:14]} 44. Ke2 {[%clk 0:00:23]}  Rb2+ {[%clk 0:00:13]} 45. Kf3 {[%clk 0:00:22]}  Rb6 {[%clk 0:00:14]} 46. Ra7+ {[%clk 0:00:22]}  Kd6 {[%clk 0:00:10]} 47. Nf4 {[%clk 0:00:14]}  Nd2+ {[%clk 0:00:10]} 48. Kg4 {[%clk 0:00:15]}  Ne4 {[%clk 0:00:09]} 49. f3 {[%clk 0:00:14]}  Nc3 {[%clk 0:00:09]} 50. Nd3 {[%clk 0:00:15]}  Nb5 {[%clk 0:00:08]} 51. Rxa5 {[%clk 0:00:13]}  Nc7 {[%clk 0:00:08]} 52. Ra7 {[%clk 0:00:13]}  Rb3 {[%clk 0:00:08]} 53. Ne5 {[%clk 0:00:13]}  Rxe3 {[%clk 0:00:08]} 54. Kh5 {[%clk 0:00:10]}  Re2 {[%clk 0:00:08]} 55. Kxh6 {[%clk 0:00:10]}  Rxg2 {[%clk 0:00:08]} 56. g4 {[%clk 0:00:11]}  Rd2 {[%clk 0:00:08]} 57. Ra4 {[%clk 0:00:11]}  Nb5 {[%clk 0:00:09]} 58. Ra6+ {[%clk 0:00:11]}  Ke7 {[%clk 0:00:08]} 59. Ra4 {[%clk 0:00:11]}  Nxd4 {[%clk 0:00:08]} 60. Rxd4 {[%clk 0:00:10]}  Rh2+ {[%clk 0:00:08]} 61. Kg5 {[%clk 0:00:10]}  Kd6 {[%clk 0:00:07]} 62. f4 {[%clk 0:00:09]}  Rh8 {[%clk 0:00:08]} 63. Rd1 {[%clk 0:00:10]}  Rg8+ {[%clk 0:00:08]} 64. Ng6 {[%clk 0:00:09]}  e5 {[%clk 0:00:08]} 65. fxe5+ {[%clk 0:00:10]}  Ke6 {[%clk 0:00:07]} 66. Rd2 {[%clk 0:00:09]}  Rc8 {[%clk 0:00:08]} 67. Rf2 {[%clk 0:00:09]}  Rg8 {[%clk 0:00:08]} 68. Rf6+ {[%clk 0:00:09]}  Kd7 {[%clk 0:00:08]} 69. Rd6+ {[%clk 0:00:09]} 1-0


[Site "https://www.chess.com"]

[Event "Titled Tuesday Blitz January 10 Late 2023"]
[White "Boruchovsky, Avital"]
[Black "Fisher_TheGalactic"]
[WhiteFideId "2800055"]
[WhiteElo "2539"]
[BlackElo "2556"]
[Result "1-0"]
[Round "03"]
[TimeControl "180+2"]
[Date "2023.01.10"]
[WhiteClock "0:00:15"]
[BlackClock "0:00:03"]

1. c4 {[%clk 0:00:00]}  e6 {[%clk 0:00:00]} 2. Nc3 {[%clk 0:03:00]}  d5 {[%clk 0:02:58]} 3. d4 {[%clk 0:03:00]}  Nf6 {[%clk 0:02:58]} 4. cxd5 {[%clk 0:03:00]}  exd5 {[%clk 0:02:58]} 5. Bg5 {[%clk 0:03:00]}  Be7 {[%clk 0:02:59]} 6. e3 {[%clk 0:02:58]}  O-O {[%clk 0:02:59]} 7. Qc2 {[%clk 0:02:58]}  h6 {[%clk 0:02:59]} 8. Bh4 {[%clk 0:02:58]}  c6 {[%clk 0:02:59]} 9. Bd3 {[%clk 0:02:57]}  Be6 {[%clk 0:02:59]} 10. Nge2 {[%clk 0:02:57]}  Nfd7 {[%clk 0:02:56]} 11. Bg3 {[%clk 0:02:51]}  c5 {[%clk 0:02:41]} 12. Bh7+ {[%clk 0:02:44]}  Kh8 {[%clk 0:02:36]} 13. Bf5 {[%clk 0:02:23]}  Nc6 {[%clk 0:02:34]} 14. Bxe6 {[%clk 0:02:24]}  fxe6 {[%clk 0:02:28]} 15. Nf4 {[%clk 0:02:24]}  Rf6 {[%clk 0:02:29]} 16. dxc5 {[%clk 0:02:22]}  Nxc5 {[%clk 0:02:10]} 17. O-O {[%clk 0:02:11]}  Rc8 {[%clk 0:02:08]} 18. Rad1 {[%clk 0:02:02]}  Qe8 {[%clk 0:02:01]} 19. Qe2 {[%clk 0:01:53]}  Rd8 {[%clk 0:02:01]} 20. a3 {[%clk 0:01:19]}  Qf7 {[%clk 0:01:42]} 21. b4 {[%clk 0:01:07]}  Nd7 {[%clk 0:01:24]} 22. Nd3 {[%clk 0:01:01]}  a6 {[%clk 0:01:19]} 23. Qa2 {[%clk 0:00:45]}  Qg6 {[%clk 0:01:13]} 24. Rfe1 {[%clk 0:00:40]}  Rdf8 {[%clk 0:01:07]} 25. e4 {[%clk 0:00:36]}  d4 {[%clk 0:01:07]} 26. e5 {[%clk 0:00:27]}  Rf5 {[%clk 0:01:02]} 27. Ne2 {[%clk 0:00:25]}  Bg5 {[%clk 0:00:54]} 28. h4 {[%clk 0:00:25]}  Bd8 {[%clk 0:00:34]} 29. Nef4 {[%clk 0:00:25]}  Qf7 {[%clk 0:00:05]} 30. Qxe6 {[%clk 0:00:25]}  Ncxe5 {[%clk 0:00:03]} 31. Nxe5 {[%clk 0:00:24]}  Nxe5 {[%clk 0:00:03]} 32. Rxe5 {[%clk 0:00:20]}  Rxe5 {[%clk 0:00:02]} 33. Qxf7 {[%clk 0:00:18]}  Rxf7 {[%clk 0:00:01]} 34. Ng6+ {[%clk 0:00:16]}  Kh7 {[%clk 0:00:01]} 35. Nxe5 {[%clk 0:00:16]}  Rf5 {[%clk 0:00:02]} 36. Rxd4 {[%clk 0:00:17]}  Bf6 {[%clk 0:00:02]} 37. Re4 {[%clk 0:00:17]}  b5 {[%clk 0:00:03]} 38. Nf3 {[%clk 0:00:17]}  Rd5 {[%clk 0:00:02]} 39. Re6 {[%clk 0:00:17]}  a5 {[%clk 0:00:03]} 40. bxa5 {[%clk 0:00:17]}  Rd3 {[%clk 0:00:02]} 41. Be5 {[%clk 0:00:17]}  Bd8 {[%clk 0:00:02]} 42. Rd6 {[%clk 0:00:16]}  Rxd6 {[%clk 0:00:01]} 43. Bxd6 {[%clk 0:00:15]}  Bxa5 {[%clk 0:00:01]} 44. Nd4 {[%clk 0:00:16]}  Bc3 {[%clk 0:00:02]} 45. Nxb5 {[%clk 0:00:15]}  Bb2 {[%clk 0:00:01]} 46. a4 {[%clk 0:00:15]}  Kg6 {[%clk 0:00:02]} 47. a5 {[%clk 0:00:15]}  Kf6 {[%clk 0:00:02]} 48. a6 {[%clk 0:00:15]}  Ke6 {[%clk 0:00:03]} 49. a7 {[%clk 0:00:15]}  Kd5 {[%clk 0:00:03]} 50. a8=Q+ {[%clk 0:00:15]} 1-0


[Site "https://www.chess.com"]